fUSD/lending_fUSD_20260116
["ID","MTS","AMOUNT","RATE_DAILY","PERIOD"]
[402197642,1768588243761,-500.0,0.000179,2]
[402197643,1768588243769,-500.0,0.000179,2]
[402197644,1768588243778,-500.0,0.000179,2]
[402197645,1768588243787,-500.0,0.000179,2]
[402197646,1768588243797,-500.0,0.000179,2]
[402197647,1768588243806,-500.0,0.000179,2]
[402197648,1768588243815,-500.0,0.000179,2]
[402197649,1768588243824,-500.0,0.000179,2]
[402197650,1768588243834,-500.0,0.000179,2]
[402197651,1768588243843,-500.0,0.000179,2]
[402197652,1768588243852,-500.0,0.000179,2]
[402197653,1768588243861,-500.0,0.000179,2]
[402197654,1768588243870,-500.0,0.000179,2]
[402197655,1768588243879,-500.0,0.000179,2]
[402197656,1768588243888,-500.0,0.000179,2]
[402197657,1768588243897,-432.15823719,0.000179,2]
[402197658,1768588243907,-685.7,0.00017911,2]
[402197659,1768588243916,-1000.0,0.00017913,2]
[402197660,1768588243925,-500.0,0.00017918,2]
[402197661,1768588243934,-333.53568828,0.00017918,2]
[402197662,1768588243943,-500.0,0.00017918,2]
[402197663,1768588243952,-477.0,0.00017918,2]
[402197664,1768588243961,-500.0,0.00017918,2]
[402197665,1768588243971,-695.0,0.00017918,2]
[402197666,1768588243979,-500.0,0.00017918,2]
[402197667,1768588243989,-1000.0,0.00017932,2]
[402197668,1768588243998,-150.0,0.00017947,2]
[402197669,1768588244007,-1000.0,0.00017951,2]
[402197670,1768588244016,-2500.0,0.00017964,2]
[402197671,1768588244025,-2351.0,0.00017965,2]
[402197672,1768588244035,-500.0,0.0001797,2]
[402197673,1768588244044,-1100.0,0.0001797,2]
[402197674,1768588244053,-500.0,0.00017972,2]
[402197675,1768588244063,-500.0,0.00017973,2]
[402197676,1768588244072,-477.0,0.00017973,2]
[402197677,1768588244081,-500.0,0.00017973,2]
[402197678,1768588244090,-695.0,0.00017973,2]
[402197679,1768588244099,-500.0,0.00017973,2]
[402197680,1768588244108,-14603.0,0.00017973,2]
[402197681,1768588244117,-500.0,0.00017973,2]
[402197682,1768588244126,-150.0,0.00017973,2]
[402197683,1768588244136,-1000.0,0.00017976,2]
[402197684,1768588244145,-1000.0,0.00017978,2]
[402197685,1768588244154,-183.77,0.00017982,2]
[402197686,1768588244163,-165.04,0.00017983,2]
[402197687,1768588244172,-1000.0,0.00017987,2]
[402197688,1768588244181,-150.0,0.00017987,2]
[402197689,1768588244190,-850.21314504,0.0001799,2]
[402197690,1768588244200,-850.21314504,0.0001799,2]
[402197691,1768588244209,-165.04,0.0001799,2]
[402197692,1768588244218,-1110.78417922,0.00017992,5]
[402197693,1768588244227,-507272.0947873,0.00017993,2]
[402197694,1768588244237,-155.710996,0.00017993,2]
[402197695,1768588244246,-151.0,0.00017993,2]
[402197696,1768588244255,-155.710996,0.00017993,2]
[402197697,1768588244264,-151.0,0.00017993,2]
[402197698,1768588244274,-155.710996,0.00017993,2]
[402197699,1768588244283,-151.0,0.00017993,2]
[402197700,1768588244295,-155.710996,0.00017993,2]
[402197701,1768588244304,-448.158202,0.00017993,2]
[402197702,1768588244313,-448.158202,0.00017993,2]
[402197703,1768588244322,-448.158202,0.00017993,2]
[402197704,1768588244331,-448.158202,0.00017993,2]
[402197705,1768588244340,-150.0,0.00017999,2]
[402197706,1768588244350,-176.82451653,0.00017999,2]
[402197707,1768588244358,-1110.78417922,0.00017999,5]
[402197708,1768588244367,-300.0,0.00017999,2]
[402197709,1768588244376,-500.0,0.00017999,2]
[402197710,1768588244384,-580.7623026,0.00017999,2]
[402197711,1768588244393,-300.0,0.00017999,2]
[402197712,1768588244402,-300.0,0.00017999,2]
[402197713,1768588244411,-300.0,0.00017999,2]
[402197714,1768588244420,-666.0,0.00017999,2]
[402197715,1768588244429,-300.0,0.00017999,2]
[402197716,1768588244438,-666.0,0.00017999,2]
[402197717,1768588244447,-300.0,0.00017999,2]
[402197718,1768588244456,-308.44597563,0.00017999,2]
[402197719,1768588244465,-300.0,0.00017999,2]
[402197720,1768588244474,-300.0,0.00017999,2]
[402197721,1768588244483,-666.0,0.00017999,2]
[402197722,1768588244492,-300.0,0.00017999,2]
[402197723,1768588244501,-4723836.91833935,0.00018,2]
[402197724,1768588244511,-345638.00173331,0.00018,2]
[402197725,1768588245275,-1797.61271401,0.00017681,2]
[402197726,1768588245298,-512.6900035,0.00017681,2]
[402197727,1768588245314,-17312.36719235,0.00017681,2]
[402197728,1768588245323,-212.33941358,0.000179,2]
[402197729,1768588245332,-146497.42572543,0.00018,2]
[402197730,1768588245353,-393.39206397,0.00018,2]
[402197731,1768588245368,-466593.27175985,0.00018,2]
[402197732,1768588245379,-2584.11823244,0.00018,2]
[402197733,1768588245449,-1813.08597401,0.00018,2]
[402197734,1768588246263,-288.55650748,0.00016175,2]
[402197735,1768588246321,-374.00349252,0.00016175,2]
[402197736,1768588246331,-614.653,0.00017546,2]
[402197737,1768588246341,-3768.09350748,0.000179,2]
[402197738,1768588246378,-950.22,0.000179,2]
[402197746,1768588292224,3180.77007586,0.00014745,2]
[402197747,1768588292251,10000.01,0.00014745,2]
[402197748,1768588292278,10000.01,0.00014745,2]
[402197749,1768588347249,123.77109253,0.000149,5]
[402197750,1768588347279,1076.22890747,0.000149,5]
[402197755,1768588415579,-195.0,0.00014707,2]
[402197756,1768588415612,-500.0,0.00014744,2]
[402197757,1768588415643,-500.0,0.00014744,2]
[402197758,1768588415672,-644.82706644,0.00014744,2]
[402197759,1768588415701,-179.0,0.00014744,2]
[402197760,1768588415729,-300.0,0.00014744,2]
[402197761,1768588415755,-150.0,0.00014744,2]
[402197762,1768588417369,736.044676,0.00014633,2]
[402197763,1768588501151,300.0,0.00014744,2]
[402197764,1768588501192,1200.0,0.00014744,2]
[402197765,1768588555413,1110.78417922,0.00014744,5]
[402197766,1768588561910,150.0,0.00014744,2]
[402197768,1768588742130,150.0,0.00014744,2]
[402197769,1768588743227,502.71067442,0.00014744,2]
[402197770,1768588779646,450.7254268,0.00014725,2]
[402197771,1768588801504,300.0,0.00014744,2]
[402197772,1768588801538,1200.0,0.00014744,2]
[402197773,1768588812026,-553.79181485,0.00014745,2]
[402197774,1768588814009,-154.25,0.00014745,2]
[402197775,1768588816665,-250.0,0.00014745,2]
[402197776,1768588818069,-248.61363329,0.00014745,2]
[402197777,1768588819605,-215.36640458,0.00014745,2]
[402197778,1768588821774,-176.11130083,0.00014745,2]
[402197779,1768588823311,-151.63403555,0.00014745,2]
[402197780,1768588831049,72.8750899,0.00014645,2]
[402197781,1768588831072,497.13009171,0.00014645,2]
[402197783,1768588857818,4093.08843,0.00014671,2]
[402197784,1768588861299,300.0,0.00014744,2]
[402197785,1768588870208,3046.174134,0.00014671,2]
[402197786,1768588881590,2063.61734429,0.00014645,2]
[402197787,1768588881616,1499.71423602,0.00014645,2]
[402197788,1768588885206,2346.6739,0.00014645,2]
[402197789,1768588894103,3567.594,0.0001445,2]
[402197790,1768588894139,227.708,0.0001445,2]
[402197791,1768588922532,150.0,0.00014744,2]
[402197792,1768588938740,9850.01,0.00014645,2]
[402197793,1768588938766,6245.91682945,0.00014645,2]
[402197794,1768588961161,514.07356127,0.00014645,2]
[402197795,1768588961566,-221.86685182,0.00014745,2]
[402197796,1768588966803,-247.15089438,0.00014745,2]
[402197797,1768588969050,-204.00360989,0.00014745,2]
[402197798,1768588971570,-298.28661049,0.00014745,2]
[402197799,1768588975856,-177.9353373,0.00014745,2]
[402197800,1768588979605,-165.75554207,0.00014745,2]
[402197801,1768588981206,300.0,0.00014744,2]
[402197802,1768588981588,-291.28539149,0.00014745,2]
[402197803,1768588983503,-300.0,0.00014745,2]
[402197804,1768588997477,1200.0,0.00014744,2]
[402197805,1768589013682,1740.01960928,0.00014645,2]
[402197806,1768589013707,10000.01,0.00014645,2]
[402197807,1768589013732,10000.01,0.00014645,2]
[402197808,1768589013754,1596.27729072,0.00014645,2]
[402197809,1768589065753,242.21679347,0.00014645,2]
[402197810,1768589066513,-267.30783199,0.00014745,2]
[402197811,1768589069477,-258.59322348,0.00014745,2]
[402197812,1768589070913,-195.0,0.00014745,2]
[402197813,1768589074168,-258.59322349,0.00014745,2]
[402197814,1768589077127,2111.4101,0.00014645,2]
[402197815,1768589083289,2500.0,0.00014645,2]
[402197816,1768589101335,1200.0,0.00014744,2]
[402197817,1768589102231,150.0,0.00014744,2]
[402197818,1768589116330,519.99911095,0.00014645,2]
[402197819,1768589161231,300.0,0.00014744,2]
[402197820,1768589216592,-341.0058,0.00014745,2]
[402197821,1768589221203,300.0,0.00014744,2]
[402197822,1768589237246,1200.0,0.000149,5]
[402197823,1768589281902,150.0,0.00014744,2]
[402197824,1768589316056,341.0058,0.00014645,2]
[402197825,1768589325180,2185.37819558,0.00014645,2]
[402197826,1768589325205,10000.01,0.00014645,2]
[402197827,1768589325231,2344.51483247,0.00014645,2]
[402197829,1768589333951,3834.94,7.772e-05,2]
[402197830,1768589334161,3820.55516753,8.182e-05,2]
[402197831,1768589334185,14.38483247,8.182e-05,2]
[402197832,1768589334489,3834.94,8.591e-05,2]
[402197833,1768589334734,3834.94,9e-05,2]
[402197834,1768589335134,2315.74516753,9.409e-05,2]
[402197835,1768589335157,1519.19483247,9.409e-05,2]
[402197836,1768589335400,3834.94,9.818e-05,2]
[402197837,1768589335653,3834.94,0.00010227,2]
[402197838,1768589336216,810.93516753,0.00010636,2]
[402197839,1768589336240,3024.00483247,0.00010636,2]
[402197840,1768589336383,3834.94,0.00011045,2]
[402197841,1768589336440,3141.06516753,0.00011454,2]
[402197842,1768589336463,693.87483247,0.00011454,2]
[402197843,1768589336540,3834.94,0.00011863,2]
[402197844,1768589336757,3834.94,0.00012272,2]
[402197845,1768589336964,1636.25516753,0.00012681,2]
[402197846,1768589336988,2198.68483247,0.00012681,2]
[402197847,1768589337217,3834.94,0.0001309,2]
[402197848,1768589337258,3966.38516753,0.00014645,2]
[402197849,1768589337284,10000.01,0.00014645,2]
[402197850,1768589337310,6972.85723247,0.00014645,2]
[402197851,1768589337502,3027.15276753,0.00013499,2]
[402197852,1768589337526,807.78723247,0.00013499,2]
[402197853,1768589337856,3834.94,0.00013908,2]
[402197854,1768589338064,3834.94,0.00014318,2]
[402197855,1768589338549,1522.34276753,0.00014727,2]
[402197856,1768589338572,2312.59723247,0.00014727,2]
[402197857,1768589354105,-250.0,0.00014745,2]
[402197858,1768589354132,-272.0,0.00014745,2]
[402197859,1768589354159,-250.0,0.0001477,2]
[402197860,1768589354185,-2447.75560003,0.00015003,2]
[402197861,1768589366543,-193.80747418,0.00015003,2]
[402197862,1768589369211,-211.81856156,0.00015003,2]
[402197863,1768589371222,7687.41276753,0.00014645,2]
[402197864,1768589371245,10000.01,0.00014645,2]
[402197865,1768589371268,10000.01,0.00014645,2]
[402197866,1768589371292,10000.01,0.00014645,2]
[402197867,1768589371315,7142.00003247,0.00014645,2]
[402197868,1768589378727,-2500.0,0.00014645,2]
[402197869,1768589389390,349.4187,0.00014645,2]
[402197878,1768589432141,-274.0,0.00014937,2]
[402197879,1768589432150,-195.0,0.00014937,2]
[402197880,1768589432159,-250.0,0.00014937,2]
[402197881,1768589432169,-183.72,0.00014937,2]
[402197882,1768589432178,-195.0,0.00014964,2]
[402197883,1768589432188,-788.18143844,0.00015003,2]
[402197884,1768589432197,-847.99061103,0.00015003,2]
[402197885,1768589432207,-2357.26692579,0.00015003,2]
[402197886,1768589432216,-1200.0,0.00015006,2]
[402197887,1768589432226,-300.0,0.00015006,2]
[402197888,1768589432236,-300.0,0.00015006,2]
[402197889,1768589432246,-14529.90302798,0.00015007,2]
[402197890,1768589432255,-999.0,0.00015031,3]
[402197891,1768589432265,-1500.0,0.00015118,2]
[402197892,1768589432275,-3834.94,0.00015136,2]
[402197893,1768589432284,-276.95,0.00015168,2]
[402197894,1768589432294,-166.66,0.00015216,2]
[402197895,1768589432304,-150.0,0.00015301,2]
[402197896,1768589432314,-166.87,0.0001531,2]
[402197897,1768589432323,-999.99,0.0001531,2]
[402197898,1768589432333,-9999.99,0.0001531,2]
[402197899,1768589432343,-9999.99,0.0001531,2]
[402197900,1768589432353,-9999.99,0.0001531,2]
[402197901,1768589432362,-150.99,0.0001531,2]
[402197902,1768589432372,-9999.99,0.0001531,2]
[402197903,1768589432382,-3283.63,0.0001531,2]
[402197904,1768589432391,-22608.19,0.0001531,2]
[402197905,1768589432401,-299.99,0.0001531,2]
[402197907,1768589432410,-150.99,0.0001531,2]
[402197909,1768589432419,-310.11,0.0001531,2]
[402197911,1768589432430,-513.6,0.0001531,2]
[402197913,1768589432439,-187.79,0.00015322,2]
[402197914,1768589432449,-14529.90302798,0.00015368,2]
[402197916,1768589432458,-2171.06,0.00015451,2]
[402197918,1768589432468,-3834.94,0.00015545,2]
[402197919,1768589432477,-166.87,0.00015584,2]
[402197922,1768589432487,-1000.0,0.00015681,2]
[402197923,1768589432496,-151.0,0.00015708,2]
[402197924,1768589432505,-151.0,0.00015708,2]
[402197925,1768589432515,-151.0,0.00015708,2]
[402197926,1768589432524,-151.0,0.00015726,2]
[402197927,1768589432533,-151.0,0.00015726,2]
[402197928,1768589432542,-14529.90302798,0.0001573,2]
[402197929,1768589432551,-200.0,0.00015773,2]
[402197930,1768589432561,-500.0,0.00015773,2]
[402197931,1768589432570,-500.0,0.00015773,2]
[402197932,1768589432579,-500.0,0.00015773,2]
[402197933,1768589432588,-166.87601861,0.00015858,2]
[402197934,1768589432597,-255.0,0.00015864,2]
[402197935,1768589432607,-1000.0,0.00015918,2]
[402197936,1768589432616,-500.0,0.00015999,2]
[402197937,1768589432625,-500.0,0.00015999,2]
[402197938,1768589432638,-500.0,0.00015999,2]
[402197939,1768589432647,-276.95,0.00016011,2]
[402197940,1768589432656,-2971.16172087,0.00016016,2]
[402197941,1768589432668,-235.8367014,0.00016016,2]
[402197942,1768589432678,-156.0432986,0.00016092,2]
[402197943,1768589432690,-285.26095391,0.00016092,2]
[402197945,1768589438246,-329.19941067,0.00014903,2]
[402197946,1768589438256,-4910.26958253,0.00016092,2]
[402197947,1768589438408,-9178.32919294,0.00016092,2]
[402197948,1768589438418,-5159.48,0.00016116,2]
[402197949,1768589438428,-500.0,0.00016199,2]
[402197950,1768589438438,-195.0,0.00016219,2]
[402197951,1768589438448,-300.0,0.00016219,2]
[402197952,1768589438458,-250.0,0.00016219,2]
[402197953,1768589438467,-3206.99842219,0.00016225,2]
[402197954,1768589438477,-491.79,0.00016289,2]
[402197955,1768589438487,-3073.83,0.00016303,2]
[402197956,1768589438497,-1000.0,0.00016321,2]
[402197957,1768589438507,-500.0,0.00016321,2]
[402197958,1768589438517,-1000.0,0.00016321,2]
[402197959,1768589438527,-322.6107,0.00016333,2]
[402197960,1768589438536,-250.0,0.00016333,2]
[402197961,1768589438546,-1000.0,0.00016333,2]
[402197962,1768589438555,-250.0,0.00016333,2]
[402197963,1768589438564,-1000.0,0.00016333,2]
[402197965,1768589438574,-250.0,0.00016333,2]
[402197967,1768589438583,-250.0,0.00016333,2]
[402197969,1768589438593,-1000.0,0.00016333,2]
[402197972,1768589438605,-250.0,0.00016333,2]
[402197974,1768589438614,-1000.0,0.00016333,2]
[402197976,1768589438624,-250.0,0.00016333,2]
[402197978,1768589438633,-1000.0,0.00016333,2]
[402197980,1768589438642,-250.0,0.00016333,2]
[402197982,1768589438652,-1000.0,0.00016333,2]
[402197984,1768589438661,-250.0,0.00016333,2]
[402197986,1768589438671,-1000.0,0.00016333,2]
[402197988,1768589438680,-250.0,0.00016333,2]
[402197990,1768589438690,-574.12855637,0.00016333,2]
[402197992,1768589438699,-1000.0,0.00016333,2]
[402197994,1768589438708,-250.0,0.00016333,2]
[402197996,1768589438717,-825.46400366,0.00016333,2]
[402197998,1768589438728,-250.0,0.00016333,2]
[402198000,1768589438737,-1239.0,0.00016333,2]
[402198001,1768589438748,-620.0,0.00016333,2]
[402198002,1768589438758,-1115.28157897,0.00016333,2]
[402198003,1768589438768,-1567.81,0.00016335,2]
[402198004,1768589438778,-300.0,0.00016423,2]
[402198005,1768589438787,-308.0,0.00016423,2]
[402198006,1768589438800,-413.80632013,0.00016431,2]
[402198007,1768589438809,-250.0,0.00016431,2]
[402198008,1768589438820,-195.0,0.00016431,2]
[402198009,1768589438829,-600.0,0.00016431,2]
[402198010,1768589438839,-3206.99842219,0.00016435,2]
[402198011,1768589438848,-500.0,0.00016438,2]
[402198012,1768589438858,-500.0,0.00016438,2]
[402198013,1768589438869,-500.0,0.00016438,2]
[402198014,1768589438879,-500.0,0.00016438,2]
[402198015,1768589438890,-500.0,0.00016438,2]
[402198016,1768589438901,-500.0,0.00016438,2]
[402198017,1768589438910,-500.0,0.00016438,2]
[402198018,1768589438919,-500.0,0.00016438,2]
[402198019,1768589438930,-500.0,0.00016438,2]
[402198020,1768589438940,-500.0,0.00016438,2]
[402198021,1768589438949,-500.0,0.00016438,2]
[402198022,1768589438959,-500.0,0.00016438,2]
[402198023,1768589438972,-500.0,0.00016438,2]
[402198024,1768589438981,-500.0,0.00016438,2]
[402198025,1768589438991,-500.0,0.00016438,2]
[402198026,1768589439003,-500.0,0.00016438,2]
[402198027,1768589439012,-500.0,0.00016438,2]
[402198028,1768589439022,-500.0,0.00016438,2]
[402198029,1768589439032,-500.0,0.00016438,2]
[402198030,1768589439042,-500.0,0.00016438,2]
[402198031,1768589439052,-500.0,0.00016438,2]
[402198032,1768589439063,-500.0,0.00016438,2]
[402198033,1768589439072,-500.0,0.00016438,2]
[402198034,1768589439082,-500.0,0.00016438,2]
[402198035,1768589439091,-500.0,0.00016438,2]
[402198036,1768589439101,-500.0,0.00016438,2]
[402198037,1768589439111,-500.0,0.00016438,2]
[402198038,1768589439120,-487.46887539,0.00016438,2]
[402198039,1768589439129,-500.0,0.00016438,2]
[402198040,1768589439138,-500.0,0.00016438,2]
[402198041,1768589439148,-500.0,0.00016438,2]
[402198042,1768589439157,-500.0,0.00016438,2]
[402198043,1768589439166,-500.0,0.00016438,2]
[402198044,1768589439175,-500.0,0.00016438,2]
[402198045,1768589439184,-500.0,0.00016438,2]
[402198047,1768589439193,-500.0,0.00016438,2]
[402198049,1768589439203,-500.0,0.00016438,2]
[402198051,1768589439212,-500.0,0.00016438,2]
[402198052,1768589439221,-500.0,0.00016438,2]
[402198053,1768589439230,-500.0,0.00016438,2]
[402198054,1768589439239,-500.0,0.00016438,2]
[402198055,1768589439248,-500.0,0.00016438,2]
[402198056,1768589439258,-464.32733007,0.00016438,2]
[402198057,1768589439271,-35.67266993,0.00016438,2]
[402198058,1768589439281,-500.0,0.00016438,2]
[402198059,1768589439293,-500.0,0.00016438,2]
[402198060,1768589439302,-500.0,0.00016438,2]
[402198061,1768589439311,-132.65165307,0.00016438,2]
[402198063,1768589440243,-367.34834693,0.00016438,2]
[402198064,1768589440253,-500.0,0.00016438,2]
[402198065,1768589440264,-500.0,0.00016438,2]
[402198066,1768589440273,-500.0,0.00016438,2]
[402198067,1768589440283,-500.0,0.00016438,2]
[402198068,1768589440293,-500.0,0.00016438,2]
[402198069,1768589440303,-500.0,0.00016438,2]
[402198070,1768589440312,-500.0,0.00016438,2]
[402198071,1768589440322,-390.43764051,0.00016438,2]
[402198072,1768589440460,-109.56235949,0.00016438,2]
[402198073,1768589440469,-500.0,0.00016438,2]
[402198074,1768589440479,-216.71823869,0.00016438,2]
[402198075,1768589440495,-283.28176131,0.00016438,2]
[402198076,1768589440505,-400.88369223,0.00016438,2]
[402198077,1768589440517,-99.11630777,0.00016438,2]
[402198078,1768589440526,-500.0,0.00016438,2]
[402198079,1768589440535,-45.93157528,0.00016438,2]
[402198080,1768589440560,-454.06842472,0.00016438,2]
[402198081,1768589440570,-500.0,0.00016438,2]
[402198082,1768589440579,-500.0,0.00016438,2]
[402198083,1768589440589,-500.0,0.00016438,2]
[402198084,1768589440598,-500.0,0.00016438,2]
[402198085,1768589440607,-500.0,0.00016438,2]
[402198086,1768589440617,-3959.43715254,0.00016453,2]
[402198087,1768589440995,-10570.46587544,0.00016453,2]
[402198088,1768589441004,-1680.0,0.00016506,2]
[402198089,1768589441014,-1000.0,0.00016515,2]
[402198090,1768589441023,-3206.99842219,0.00016644,2]
[402198091,1768589441033,-14529.90302798,0.00016815,2]
[402198092,1768589441041,-3206.99842219,0.00016853,2]
[402198093,1768589441051,-276.95,0.00016853,2]
[402198094,1768589441060,-1500.0,0.00016868,2]
[402198095,1768589441069,-595.37131296,0.00016881,2]
[402198096,1768589441078,-2500.0,0.000169,6]
[402198097,1768589441088,-1149.03103041,0.00016914,2]
[402198098,1768589441097,-433.17,0.00017,2]
[402198099,1768589441106,-250.0,0.00017,2]
[402198100,1768589441115,-3206.99842219,0.00017063,2]
[402198101,1768589441124,-433.0,0.00017073,2]
[402198102,1768589441133,-150.0,0.00017108,3]
[402198103,1768589441142,-1000.0,0.00017112,2]
[402198104,1768589441151,-3073.83,0.00017118,2]
[402198105,1768589441160,-150.0,0.00017119,3]
[402198106,1768589441169,-14529.90302798,0.00017177,2]
[402198107,1768589441179,-3206.99842219,0.00017272,2]
[402198108,1768589441188,-3800.0,0.000173,6]
[402198109,1768589441197,-250.0,0.00017355,2]
[402198110,1768589441206,-200.0,0.00017365,2]
[402198111,1768589441215,-150.0,0.00017391,2]
[402198112,1768589441225,-5100.0,0.000174,6]
[402198113,1768589441234,-2000.0,0.00017416,2]
[402198114,1768589441243,-617.40005154,0.00017429,2]
[402198115,1768589441252,-454.99922209,0.00017449,2]
[402198116,1768589441262,-3206.99842219,0.00017481,2]
[402198117,1768589441272,-150.0,0.000175,2]
[402198118,1768589441281,-2000.0,0.000175,2]
[402198119,1768589441292,-6300.0,0.000175,6]
[402198120,1768589441301,-454.99922204,0.00017513,2]
[402198121,1768589441311,-14529.90302798,0.00017538,2]
[402198122,1768589441321,-580.7623026,0.00017549,2]
[402198123,1768589441330,-454.99922204,0.00017578,2]
[402198124,1768589441339,-500.0,0.00017589,2]
[402198125,1768589441348,-477.0,0.00017589,2]
[402198126,1768589441357,-500.0,0.00017589,2]
[402198127,1768589441367,-500.0,0.00017589,2]
[402198128,1768589441376,-500.0,0.00017589,2]
[402198129,1768589441386,-500.0,0.00017589,2]
[402198130,1768589441395,-150.0,0.00017589,2]
[402198131,1768589441405,-150.0,0.00017589,2]
[402198132,1768589441414,-150.0,0.00017589,2]
[402198133,1768589441424,-695.0,0.00017589,2]
[402198134,1768589441433,-150.0,0.00017589,2]
[402198135,1768589441443,-1200.0,0.000176,6]
[402198136,1768589441452,-165.51315466,0.0001764,2]
[402198137,1768589441461,-1000.0,0.00017641,2]
[402198138,1768589441471,-454.99922204,0.00017642,2]
[402198139,1768589441480,-500.0,0.00017644,2]
[402198140,1768589441490,-477.0,0.00017644,2]
[402198141,1768589441500,-500.0,0.00017644,2]
[402198142,1768589441509,-500.0,0.00017644,2]
[402198143,1768589441519,-500.0,0.00017644,2]
[402198144,1768589441528,-500.0,0.00017644,2]
[402198145,1768589441538,-150.0,0.00017644,2]
[402198146,1768589441547,-695.0,0.00017644,2]
[402198147,1768589441557,-182.12762624,0.00017644,2]
[402198148,1768589441566,-3206.99842219,0.00017691,2]
[402198149,1768589441575,-276.95,0.00017696,2]
[402198150,1768589441584,-500.0,0.00017699,2]
[402198151,1768589441593,-477.0,0.00017699,2]
[402198152,1768589441603,-500.0,0.00017699,2]
[402198153,1768589441612,-500.0,0.00017699,2]
[402198154,1768589441621,-500.0,0.00017699,2]
[402198155,1768589441631,-500.0,0.00017699,2]
[402198156,1768589441640,-279.63385986,0.00017699,2]
[402198157,1768589441650,-695.0,0.00017699,2]
[402198158,1768589441659,-1000.0,0.000177,2]
[402198159,1768589441669,-1200.0,0.000177,6]
[402198160,1768589441677,-334.5472959,0.00017702,2]
[402198161,1768589441687,-1239.0,0.00017702,2]
[402198162,1768589441697,-649.00308054,0.00017702,2]
[402198163,1768589441706,-454.99922204,0.00017707,2]
[402198164,1768589441715,-1000.0,0.00017709,2]
[402198165,1768589441724,-1000.0,0.00017729,2]
[402198166,1768589441733,-1000.0,0.00017733,2]
[402198167,1768589441742,-150.0,0.00017735,2]
[402198168,1768589441752,-1000.0,0.00017735,2]
[402198169,1768589441762,-448.57757008,0.00017744,2]
[402198170,1768589441771,-1000.0,0.0001775,2]
[402198171,1768589441781,-500.0,0.00017753,2]
[402198172,1768589441790,-477.0,0.00017753,2]
[402198173,1768589441799,-500.0,0.00017753,2]
[402198174,1768589441809,-500.0,0.00017753,2]
[402198175,1768589441818,-500.0,0.00017753,2]
[402198176,1768589441828,-500.0,0.00017753,2]
[402198177,1768589441838,-695.0,0.00017753,2]
[402198178,1768589441847,-1000.0,0.0001776,2]
[402198179,1768589441857,-280.7705989,0.00017767,7]
[402198180,1768589441866,-495.31261727,0.00017767,7]
[402198181,1768589441876,-740.95805273,0.00017767,7]
[402198182,1768589441885,-1002.5334,0.00017767,7]
[402198183,1768589441898,-454.99922204,0.00017771,2]
[402198184,1768589441908,-1000.0,0.00017774,2]
[402198185,1768589441918,-1000.0,0.00017781,2]
[402198186,1768589441927,-1000.0,0.00017791,2]
[402198187,1768589441938,-1000.0,0.000178,2]
[402198188,1768589441948,-1200.0,0.000178,6]
[402198189,1768589441958,-1000.0,0.00017801,2]
[402198190,1768589441969,-161.805,0.00017806,2]
[402198191,1768589441978,-1331.0,0.00017806,2]
[402198192,1768589441988,-614.0,0.00017806,2]
[402198193,1768589441998,-3471.0,0.00017806,2]
[402198194,1768589442008,-1406.0,0.00017806,2]
[402198195,1768589442017,-1268.0,0.00017806,2]